bitfinex-derivatives/quotes_BNBF0:USTF0_20250908
["timestamp","ask_amount","ask_price","bid_price","bid_amount"]
[1757337857166,1.5264063,885.41,883.1,3.29798723]
[1757337857463,1.5264063,885.4,883.1,3.29798723]
[1757337858265,0.19707,885.42,883.1,3.29798723]
[1757337863066,1.5264063,885.38,883.03,3.29798723]
[1757337864166,1.5264063,885.37,883.03,3.29798723]
[1757337864467,1.5264063,885.36,883.03,3.29798723]
[1757337865571,1.5264063,885.37,883.03,3.29798723]
[1757337865774,1.5264063,885.31,883.03,3.29798723]
[1757337866372,1.5264063,885.23,883.03,3.29798723]
[1757337867368,1.5264063,885.22,883.03,3.29798723]
[1757337867768,1.5264063,885.22,883.02,3.29798723]
[1757337868270,1.5264063,885.21,883.02,3.29798723]
[1757337868870,1.5264063,885.24,883.02,3.29798723]
[1757337869275,1.5264063,885.23,883.02,3.29798723]
[1757337870175,1.5264063,885.22,883.02,3.29798723]
[1757337870371,1.5264063,885.3,883.02,3.29798723]
[1757337871276,1.5264063,885.29,883.02,3.29798723]
[1757337872276,1.5264063,885.27,883.02,3.29798723]
[1757337872779,1.5264063,885.26,883.02,3.29798723]
[1757337873276,1.5264063,885.25,883.02,3.29798723]
[1757337873781,1.5264063,885.3,883.04,3.29798723]
[1757337874078,1.5264063,885.33,883.07,3.29798723]
[1757337874282,1.5264063,885.32,883.07,3.29798723]
[1757337874677,1.01726431,885.09,883.07,3.29798723]
[1757337875180,1.01726431,885.07,883.07,3.29798723]
[1757337876082,1.01726431,885.08,883.07,3.29798723]
[1757337876384,1.01726431,885.07,883.07,3.29798723]
[1757337877284,1.01726431,885.06,883.07,3.29798723]
[1757337878189,1.01726431,885.05,883.07,3.29798723]
[1757337878390,1.01726431,885.04,883.07,3.29798723]
[1757337879385,1.01726431,885.02,883.07,3.29798723]
[1757337880092,1.01726431,884.98,883.07,3.29798723]
[1757337880291,1.01726431,884.97,883.07,3.29798723]
[1757337880692,1.01726431,884.96,883.07,3.29798723]
[1757337881194,1.01726431,884.94,883.07,3.29798723]
[1757337881806,1.01726431,884.93,883.07,3.29798723]
[1757337882293,1.01726431,884.9,883.07,3.29798723]
[1757337883199,1.01726431,884.88,883.07,3.29798723]
[1757337883601,1.01726431,884.85,883.07,3.29798723]
[1757337884200,1.01726431,884.83,883.07,3.29798723]
[1757337884604,1.01726431,884.84,883.07,3.29798723]
[1757337885203,1.01726431,884.83,883.07,3.29798723]
[1757337886000,1.01726431,884.79,883.07,3.29798723]
[1757337886602,1.5264063,884.95,883.07,3.29798723]
[1757337888206,1.5264063,884.93,883.07,3.29798723]
[1757337888706,1.5264063,884.92,883.07,3.29798723]
[1757337888908,1.5264063,884.92,883.07,5.83611163]
[1757337890304,1.5264063,884.96,883.07,5.83611163]
[1757337890511,1.5264063,884.96,883.07,3.29798723]
[1757337890804,1.5264063,884.97,883.07,3.29798723]
[1757337891605,1.5264063,884.96,883.07,3.29798723]
[1757337891908,1.5264063,884.98,883.07,3.29798723]
[1757337892408,1.5264063,884.97,883.07,3.29798723]
[1757337892908,1.5264063,884.96,883.07,3.29798723]
[1757337893609,1.5264063,884.97,883.07,3.29798723]
[1757337894908,1.5264063,885.01,883.07,3.29798723]
[1757337895405,1.5264063,885.02,883.07,3.29798723]
[1757337896511,1.5264063,885.04,883.07,3.29798723]
[1757337897011,1.5264063,885.02,883.07,3.29798723]
[1757337897506,1.5264063,885.03,883.07,3.29798723]
[1757337901516,1.5264063,885.01,883.08,4.01394305]
[1757337901812,1.5264063,885.01,883.08,3.29798723]
[1757337902311,1.5264063,885.02,883.08,3.29798723]
[1757337902511,1.5264063,885.02,883.09,4.01390247]
[1757337902811,1.5264063,885.01,883.09,3.29798723]
[1757337903022,1.5264063,884.99,883.09,3.29798723]
[1757337903914,1.5264063,885.07,883.09,3.29798723]
[1757337905320,1.5264063,885.06,883.09,3.29798723]
[1757337906122,1.5264063,885.07,883.09,3.29798723]
[1757337906621,1.5264063,885.07,883.09,3.29966299]
[1757337906818,1.5264063,885.08,883.09,3.29966299]
[1757337908018,1.5264063,885.07,883.09,3.29966299]
[1757337909519,1.5264063,885.08,883.09,3.29966299]
[1757337909724,1.5264063,885.17,883.09,3.29966299]
[1757337910421,1.5264063,885.16,883.08,3.29966299]
[1757337911120,1.5264063,885.1,883.08,3.29966299]
[1757337913025,1.5264063,885.09,883.08,3.29966299]
[1757337913823,1.5264063,885.1,883.08,3.29966299]
[1757337914124,1.5264063,885.09,883.08,3.29966299]
[1757337914926,0.19707,885.42,883.08,3.29966299]
[1757337914927,1.5264063,885.1,883.08,3.29966299]
[1757337916123,1.5264063,885.04,883.08,3.29966299]
[1757337916326,0.19707,885.42,882.36,3.5533741]
[1757337916327,1.5264063,885.05,883.1,3.29966299]
[1757337916826,1.5264063,885.07,883.1,3.29966299]
[1757337917024,1.5264063,885.08,883.1,3.29966299]
[1757337920329,1.5264063,885.07,883.1,3.29966299]
[1757337922029,1.5264063,885.08,883.1,3.29966299]
[1757337925736,1.5264063,885.01,883.1,3.29966299]
[1757337925936,1.5264063,885.05,883.1,3.29966299]
[1757337926133,1.5264063,885.08,883.1,3.29966299]
[1757337927132,1.5264063,885.07,883.1,3.29966299]
[1757337928736,1.5264063,885.23,883.19,3.29966299]
[1757337928936,1.5264063,885.21,883.2,0.71643842]
[1757337929136,1.5264063,885.32,883.3,3.29966299]
[1757337929437,1.5264063,885.34,883.3,3.29966299]
[1757337930136,1.5264063,885.36,883.3,3.29966299]
[1757337930333,1.5264063,885.35,883.3,3.29966299]
[1757337930539,1.5264063,885.29,883.3,3.29966299]
[1757337931138,1.5264063,885.31,883.3,3.29966299]
[1757337931338,1.5264063,885.26,883.27,3.29966299]
[1757337931540,1.5264063,885.19,883.2,3.29966299]
[1757337932039,1.5264063,885.2,883.2,3.29966299]
[1757337934443,1.5264063,885.22,883.23,3.29966299]
[1757337934643,1.5264063,885.19,883.23,3.29966299]
[1757337934839,1.5264063,885.21,883.23,3.29966299]
[1757337935042,1.5264063,885.23,883.23,3.29966299]
[1757337935238,1.5264063,885.27,883.28,3.29966299]
[1757337935539,1.5264063,885.33,883.33,3.29966299]
[1757337936038,1.5264063,885.35,883.33,3.29966299]
[1757337937139,1.5264063,885.36,883.33,3.29966299]
[1757337938143,1.5264063,885.37,883.33,3.29966299]
[1757337938943,1.5264063,885.33,883.33,3.29966299]
[1757337939642,0.19707,885.42,883.33,3.29966299]
[1757337940148,0.19707,885.42,883.3,3.29966299]
[1757337940443,0.19707,885.42,883.23,3.29966299]
[1757337940646,0.19707,885.42,883.22,3.29966299]
[1757337942148,0.19707,885.42,883.23,4.01709719]
[1757337942350,0.19707,885.42,883.23,3.29966299]
[1757337950554,1.5264063,885.38,883.23,3.29966299]
[1757337950850,0.19707,885.42,883.23,3.29966299]
[1757337951054,0.19707,885.42,883.24,4.01699797]
[1757337951249,0.19707,885.42,881.27,5.0762488]
[1757337951250,0.19707,885.42,883.25,4.01696457]
[1757337951455,0.19707,885.42,883.26,4.01696457]
[1757337951762,0.19707,885.42,883.26,3.29966299]
[1757337960559,1.5264063,885.39,883.26,3.29966299]
[1757337960861,1.5264063,885.37,883.26,3.29966299]
[1757337961061,1.5264063,885.34,883.26,3.29966299]
[1757337961259,1.5264063,885.36,883.26,3.29966299]
[1757337961457,1.5264063,885.32,883.26,3.29966299]
[1757337961661,1.5264063,885.35,883.26,3.29966299]
[1757337962565,1.5264063,885.34,883.26,3.29966299]
[1757337964061,1.5264063,885.33,883.26,3.29966299]
[1757337964364,1.5264063,885.36,883.26,3.29966299]
[1757337965663,1.5264063,885.34,883.26,3.29966299]
[1757337965963,1.5264063,885.33,883.26,3.29966299]
[1757337966366,1.5264063,885.37,883.26,3.29966299]
[1757337967964,1.5264063,885.36,883.26,3.29966299]
[1757337969169,1.5264063,885.37,883.26,3.29966299]
[1757337969469,1.5264063,885.39,883.28,3.29966299]
[1757337969670,0.19712023,884.85,883.28,3.29966299]
[1757337970666,0.19712023,884.85,883.3,0.76153869]
[1757337970866,0.19712023,884.85,883.3,3.29966299]
[1757337971272,0.19712023,884.85,883.31,4.01728256]
[1757337971572,0.19712023,884.85,883.32,4.01725613]
[1757337971780,0.19712023,884.85,883.32,3.29966299]
[1757337972668,0.19712023,884.85,883.38,3.29966299]
[1757337974274,0.19712023,884.85,883.33,3.29966299]
[1757337974474,0.19712023,884.85,883.32,3.29966299]
[1757337975476,0.19712023,884.85,883.28,3.29966299]
[1757337975976,0.19712023,884.85,883.26,3.29966299]
[1757337976276,0.19712023,884.85,883.21,3.29966299]
[1757337979080,0.19712023,884.85,883.22,4.01769912]
[1757337979277,0.19712023,884.85,883.22,3.29966299]
[1757337981082,0.19712023,884.85,883.23,4.01778167]
[1757337981279,0.19712023,884.85,883.24,0.71815222]
[1757337981479,0.19712023,884.85,883.24,3.29966299]
[1757337982279,0.19712023,884.85,883.23,3.29966299]
[1757337987987,0.19712023,884.85,883.24,4.01830351]
[1757337988187,0.19712023,884.85,883.26,3.29966299]
[1757337994096,0.19712023,884.85,883.24,3.29966299]
[1757337994393,0.19712023,884.85,883.18,3.29966299]
[1757338007004,0.19712023,884.85,883.7,3.29966299]
[1757338007203,0.19712023,884.85,883.6,3.29966299]
[1757338007404,1.5264063,885.77,883.55,3.10263148]
[1757338008205,1.5264063,885.78,883.55,3.10263148]
[1757338009104,1.5264063,885.79,883.55,3.10263148]
[1757338009308,1.5264063,885.8,883.55,3.10263148]
[1757338009809,1.5264063,886.23,883.69,2.28441329]
[1757338010206,1.5264063,886.26,883.69,2.28441329]
[1757338010406,0.1970025,885.6,883.69,2.28441329]
[1757338012406,0.1970025,885.6,883.7,0.71895431]
[1757338012609,0.1970025,885.6,883.71,3.0033676]
[1757338012809,0.1970025,885.6,883.71,2.28441329]
[1757338013706,0.1970025,885.6,883.7,2.28441329]
[1757338014508,0.1970025,885.6,883.7,0.76153869]
[1757338014711,0.1970025,885.6,883.89,2.28441329]
[1757338016610,0.1970025,885.6,883.9,0.71717977]
[1757338016808,0.1970025,885.6,883.9,2.28441329]
[1757338019012,0.1970025,885.6,883.89,2.28441329]
[1757338019413,0.1970025,885.6,884.1,2.28441329]
[1757338019612,0.1970025,885.6,884.09,2.28441329]
[1757338019813,0.1970025,885.6,884.1,3.00021298]
[1757338020013,0.1970025,885.6,884.1,2.28441329]
[1757338021910,0.1970025,885.6,884.08,0.76153869]
[1757338022109,0.1970025,885.6,884.06,0.76153869]
[1757338022314,0.1970025,885.6,883.99,2.28441329]
[1757338022715,0.1970025,885.6,883.98,2.28441329]
[1757338024519,0.1970025,885.6,883.9,2.28441329]
[1757338024912,0.1970025,885.6,884.09,2.28441329]
[1757338030022,0.1970025,885.6,884.08,2.28441329]
[1757338030318,0.1970025,885.6,884.02,2.28441329]
[1757338032521,0.1970025,885.6,884.03,2.99714028]
[1757338032719,0.1970025,885.6,884.03,2.28441329]
[1757338033319,0.1970025,885.6,884.02,2.28441329]
[1757338033523,0.1970025,885.6,884.03,2.99699581]
[1757338033716,0.1970025,885.6,884.02,2.28441329]
[1757338034219,0.1970025,885.6,884.01,2.28441329]
[1757338034419,0.1970025,885.6,883.94,2.28441329]
[1757338036125,0.1970025,885.6,883.95,2.9969924]
[1757338036320,0.1970025,885.6,883.95,2.28441329]
[1757338036636,0.1970025,885.6,883.94,2.28441329]
[1757338037522,0.1970025,885.6,883.94,3.28603559]
[1757338038423,0.1970025,885.6,883.95,3.99857542]
[1757338038626,0.1970025,885.6,883.95,3.28603559]
[1757338042426,1.5264063,886.78,883.95,3.28603559]
[1757338043130,1.5264063,886.73,883.95,3.28603559]
[1757338043331,1.5264063,886.72,883.95,3.28603559]
[1757338044726,1.5264063,886.71,883.95,3.28603559]
[1757338045027,1.5264063,886.7,883.95,3.28603559]
[1757338046132,1.5264063,886.74,883.95,3.28603559]
[1757338046829,1.5264063,886.75,883.95,3.28603559]
[1757338047232,1.5264063,886.74,883.95,3.28603559]
[1757338047734,0.19694174,886.05,883.94,3.28603559]
[1757338047933,0.19694174,886.05,883.43,2.5381244]
[1757338047934,0.19694174,886.05,883.95,3.99890576]
[1757338048233,0.19694174,886.05,883.95,3.28603559]
[1757338049131,0.19694174,886.05,883.94,3.28603559]
[1757338049335,0.19694174,886.05,883.91,3.28603559]
[1757338049832,0.19694174,886.05,883.92,3.99913246]
[1757338050136,0.19694174,886.05,883.92,3.28603559]
[1757338052838,0.19694174,886.05,883.91,3.28603559]
[1757338054336,0.19694174,886.05,883.18,2.5381244]
[1757338054337,0.19694174,886.05,883.92,3.99974167]
[1757338054638,0.19694174,886.05,883.92,3.28603559]
[1757338055339,0.19694174,886.05,883.9,3.28603559]
[1757338057740,0.19694174,886.05,883.89,3.28603559]
[1757338057935,0.19694174,886.05,883.9,1.0016223]
[1757338058139,0.19694174,886.05,883.9,3.28603559]
[1757338060041,0.19694174,886.05,883.91,4.0010518]
[1757338060241,0.19694174,886.05,883.91,3.28603559]
[1757338070346,1.5264063,885.98,883.91,3.28603559]
[1757338070547,1.5264063,886.0,883.91,3.28603559]
[1757338071043,1.5264063,885.99,883.91,3.28603559]
[1757338071244,1.5264063,885.98,883.91,3.28603559]
[1757338072148,1.5264063,885.97,883.91,3.28603559]
[1757338073254,1.5264063,885.96,883.91,3.28603559]
[1757338074252,1.5264063,885.95,883.91,3.28603559]
[1757338075152,1.5264063,885.96,883.91,3.28603559]
[1757338075555,1.5264063,885.91,883.91,3.28603559]
[1757338075955,1.5264063,885.92,883.91,3.28603559]
[1757338076854,1.5264063,885.9,883.91,3.28603559]
[1757338077160,1.5264063,885.97,883.91,3.28603559]
[1757338078056,1.5264063,885.96,883.91,3.28603559]
[1757338079456,1.5264063,885.97,883.91,3.28603559]
[1757338081262,1.5264063,885.96,883.91,3.28603559]
[1757338081460,1.5264063,885.97,883.91,3.28603559]
[1757338083663,1.5264063,885.96,883.91,3.28603559]
[1757338084966,1.5264063,885.97,883.91,3.28603559]
[1757338085165,1.5264063,885.96,883.91,3.28603559]
[1757338085763,1.5264063,885.95,883.91,3.28603559]
[1757338085973,1.5264063,885.96,883.91,3.28603559]
[1757338086174,1.5264063,885.95,883.91,3.28603559]
[1757338086773,1.5264063,885.94,883.91,3.28603559]
[1757338087069,1.5264063,885.96,883.91,3.28603559]
[1757338087273,1.5264063,885.91,883.86,3.28603559]
[1757338088371,1.5264063,885.91,883.87,4.00818346]
[1757338088671,1.5264063,885.91,883.87,3.28603559]
[1757338089774,1.5264063,885.89,883.87,3.28603559]
[1757338090774,1.5264063,885.9,883.88,4.00831797]
[1757338090978,1.5264063,885.9,883.88,3.28603559]
[1757338092174,1.5264063,885.89,883.88,3.28603559]
[1757338092576,0.19694174,886.05,883.88,3.28603559]
[1757338104081,1.5264063,886.01,883.88,3.28603559]
[1757338104285,1.5264063,885.96,883.88,3.28603559]
[1757338104886,1.5264063,885.99,883.88,3.28603559]
[1757338105381,1.5264063,885.98,883.88,3.28603559]
[1757338107188,1.5264063,885.97,883.88,3.28603559]
[1757338107985,0.19694174,886.05,883.88,3.28603559]
[1757338107986,1.5264063,885.89,883.88,3.28603559]
[1757338108285,1.5264063,885.87,883.88,3.28603559]
[1757338108886,1.5264063,885.84,883.88,3.28471416]
[1757338110388,1.5264063,885.86,883.88,3.28471416]
[1757338111188,1.5264063,885.86,883.87,3.28471416]
[1757338111391,1.5264063,885.85,883.87,3.28471416]
[1757338112591,1.5264063,885.83,883.87,3.28471416]
[1757338113188,1.5264063,885.82,883.86,3.28471416]
[1757338113388,1.5264063,885.82,883.85,3.28471416]
[1757338113589,1.5264063,885.79,883.83,3.28471416]
[1757338113890,1.5264063,885.81,883.83,3.28471416]
[1757338114194,1.5264063,885.91,883.82,3.28471416]
[1757338114395,1.5264063,885.84,883.75,3.28471416]
[1757338115488,0.19694174,886.05,882.25,5.0762488]
[1757338115489,1.5264063,885.82,883.73,3.28471416]
[1757338116494,1.5264063,885.83,883.73,3.28471416]
[1757338117291,1.5264063,885.84,883.73,3.28471416]
[1757338118397,1.5264063,885.85,883.73,3.28471416]
[1757338118896,0.19694174,886.05,884.03,3.28471416]
[1757338119094,0.19694174,886.05,884.05,3.28471416]
[1757338120498,0.19694174,886.05,884.08,3.28471416]
[1757338121102,0.19694174,886.05,884.23,3.28471416]
[1757338121301,0.19694174,886.05,884.25,3.28471416]
[1757338124900,0.19694174,886.05,884.28,3.28471416]
[1757338126403,0.19694174,886.05,884.16,3.28471416]
[1757338127901,0.19694174,886.05,884.15,3.28471416]
[1757338128206,0.19694174,886.05,884.1,3.28471416]
[1757338129005,0.19694174,886.05,884.06,3.28471416]
[1757338135508,0.19694174,886.05,884.07,0.72043441]
[1757338135809,0.19694174,886.05,884.15,3.28471416]
[1757338137611,0.19694174,886.05,884.14,3.28471416]
[1757338138706,0.19694174,886.05,884.14,2.5244969]
[1757338138913,0.19694174,886.05,884.14,3.28075907]
[1757338139611,0.19694174,886.05,883.07,2.5381244]
[1757338139612,0.19694174,886.05,884.15,4.00082613]
[1757338139907,0.19694174,886.05,884.15,3.28075907]
[1757338140106,0.19694174,886.05,883.08,2.5381244]
[1757338140313,0.19694174,886.05,881.59,5.0762488]
[1757338141314,0.19694174,886.05,880.08,8.114798]
[1757338141910,0.19694174,886.05,880.24,10.143497]
[1757338146717,0.19694174,886.05,880.79,8.114798]
[1757338151917,0.19694174,886.05,881.16,8.114798]
[1757338157027,0.19694174,886.05,881.65,8.114798]
[1757338162232,0.19694174,886.05,881.57,8.114798]
[1757338167439,0.19694174,886.05,881.55,8.114798]
[1757338172649,0.19694174,886.05,881.16,8.114798]
[1757338177849,0.19694174,886.05,881.11,8.114798]
[1757338182961,0.19694174,886.05,881.38,8.114798]
[1757338188257,0.19694174,886.05,881.96,8.114798]
[1757338198565,0.19694174,886.05,881.51,8.114798]
[1757338203770,0.19694174,886.05,880.97,8.114798]
[1757338208980,0.19694174,886.05,882.01,8.114798]
[1757338214082,0.19694174,886.05,881.36,8.114798]
[1757338219289,0.19694174,886.05,880.86,8.114798]
[1757338224488,0.19694174,886.05,881.92,8.114798]
[1757338229702,0.19694174,886.05,881.49,8.114798]
[1757338234896,0.19694174,886.05,880.74,8.114798]
[1757338240201,0.19694174,886.05,881.15,8.114798]
[1757338245308,0.19694174,886.05,881.35,8.114798]
[1757338247706,8.1093918,889.22,881.35,8.114798]
[1757338247911,0.19692391,884.88,881.35,8.114798]
[1757338248210,8.1093918,889.22,881.35,8.114798]
[1757338248407,0.19692391,884.0,881.35,8.114798]
[1757338248612,8.1093918,889.22,881.35,8.114798]
[1757338250612,8.1093918,889.22,881.7,0.19692391]
[1757338250809,8.1093918,890.63,881.7,0.19692391]
[1757338251910,0.19691166,888.4,881.7,0.19692391]
[1757338281533,0.19691166,888.4,881.98,8.114798]
[1757338286740,0.19691166,888.4,882.07,8.114798]
[1757338292046,0.19691166,888.4,881.7,0.19692391]
[1757338312855,0.19691166,888.4,881.81,8.114798]
[1757338318075,0.19691166,888.4,882.09,8.114798]
[1757338323167,0.19691166,888.4,881.7,0.19692391]
[1757338369205,0.19691166,888.4,880.23,8.114798]
[1757338369507,0.19691166,888.4,881.53,0.19705549]
[1757338369804,0.19691166,888.4,880.01,8.114798]
[1757338370104,0.19691166,888.4,881.42,0.19707056]
[1757338372308,0.19691166,888.4,880.01,8.114798]
[1757338372613,0.19691166,888.4,881.32,0.19713977]
[1757338376310,0.19691166,888.4,880.27,8.114798]
[1757338376511,0.19691166,888.4,881.21,0.19713866]
[1757338383920,0.19691166,888.4,879.72,8.114798]
[1757338384217,0.19691166,888.4,881.05,0.19714536]
[1757338384818,0.19691166,888.4,879.72,8.114798]
[1757338385221,0.19691166,888.4,880.85,0.19716658]
[1757338421752,0.19691166,888.4,880.85,8.31196458]
[1757338426952,0.19691166,888.4,880.85,0.19716658]
[1757338440074,1.5221697,885.79,883.3,3.27951199]
[1757338440372,1.5221697,885.72,883.3,3.27951199]
[1757338441171,1.5221697,885.7,883.3,3.27951199]
[1757338441375,1.5221697,885.71,883.3,3.27951199]
[1757338441875,1.5221697,885.7,883.3,3.27951199]
[1757338442475,1.5221697,885.71,883.3,3.27951199]
[1757338444279,1.5221697,885.72,883.3,3.27951199]
[1757338445178,1.5221697,885.67,883.3,3.27951199]
[1757338445374,1.5221697,885.66,883.3,3.27951199]
[1757338446175,1.5221697,885.65,883.3,3.27951199]
[1757338446374,1.5221697,885.66,883.3,3.27951199]
[1757338446975,1.5221697,885.68,883.3,3.27951199]
[1757338447482,1.5221697,885.67,883.3,3.27951199]
[1757338448275,1.5221697,885.65,883.3,3.27951199]
[1757338449175,1.5221697,885.75,883.3,3.27951199]
[1757338449477,1.5221697,885.73,883.3,3.27951199]
[1757338450276,1.5221697,885.72,883.3,3.27951199]
[1757338450580,1.5221697,885.73,883.3,3.27951199]
[1757338451076,1.5221697,885.72,883.3,3.27951199]
[1757338451378,1.5221697,885.71,883.3,3.27951199]
[1757338451579,5.0738991,887.75,883.3,3.27951199]
[1757338451580,1.5221697,885.7,883.3,3.27951199]
[1757338452077,0.197094,885.11,883.3,3.27951199]
[1757338452575,0.197094,885.11,883.31,3.99847547]
[1757338452779,0.197094,885.11,883.38,3.27951199]
[1757338453180,0.197094,885.11,883.39,3.99828497]
[1757338453375,0.197094,885.11,883.39,3.27951199]
[1757338456483,0.197094,885.11,883.38,3.27951199]
[1757338460883,0.197094,885.11,883.42,3.27951199]
[1757338465292,0.197094,885.11,883.43,0.71993833]
[1757338465586,0.197094,885.11,883.46,3.27951199]
[1757338466093,0.197094,885.11,883.49,3.27951199]
[1757338466496,0.197094,885.11,883.5,3.99953989]
[1757338466690,0.197094,885.11,883.5,3.27951199]
[1757338466993,0.197094,885.11,883.49,3.27951199]
[1757338470596,0.197094,885.11,883.5,4.0000956]
[1757338470791,0.197094,885.11,883.5,3.27951199]
[1757338471900,0.197094,885.11,883.49,3.27951199]
[1757338482009,1.5221697,885.66,883.36,2.27043139]
[1757338483307,1.5221697,885.65,883.36,2.27043139]
[1757338485012,0.1971046,885.08,883.36,2.27043139]
[1757338486612,0.1971046,885.08,883.31,2.27043139]
[1757338487614,0.1971046,885.08,883.32,2.99157939]
[1757338487815,0.1971046,885.08,883.32,2.27043139]
[1757338488212,0.1971046,885.08,883.33,2.99156051]
[1757338488416,0.1971046,885.08,883.33,2.27043139]
[1757338489216,0.1971046,885.08,883.34,2.99154326]
[1757338489512,0.1971046,885.08,883.34,2.27043139]
[1757338490817,0.1971046,885.08,883.35,2.99140333]
[1757338491017,0.1971046,885.08,883.35,2.27043139]
[1757338493317,1.5221697,885.61,883.21,0.75681049]
[1757338493821,1.5221697,885.61,882.57,3.5317822]
[1757338493822,1.5221697,885.62,883.22,1.47602437]
[1757338494021,1.5221697,885.62,883.22,0.75681049]
[1757338494521,1.5221697,885.5,883.22,0.75681049]
[1757338494822,1.5221697,885.47,883.22,0.75681049]
[1757338495422,1.5221697,885.48,883.22,0.75681049]
[1757338495928,1.5221697,885.35,883.18,0.75681049]
[1757338496130,1.5221697,885.22,883.18,0.75681049]
[1757338496331,0.19714368,884.81,883.13,0.75681049]
[1757338501235,0.19714368,884.81,883.14,1.47559347]
[1757338501435,0.19714368,884.81,883.14,0.75681049]
[1757338506649,0.19714368,884.81,883.15,0.71917597]
[1757338506936,0.19714368,884.81,883.16,1.47598646]
[1757338507139,0.19714368,884.81,883.23,0.75681049]
[1757338511940,0.19714368,884.81,883.23,1.76932029]
[1757338513045,0.19714368,884.81,883.24,2.48814256]
[1757338513245,0.19714368,884.81,883.24,1.76932029]
[1757338513460,0.19714368,884.81,883.24,3.28787653]
[1757338515241,0.19714368,884.81,882.28,3.5317822]
[1757338515242,1.5221697,886.01,883.14,1.57218331]
[1757338516141,5.0738991,887.48,883.14,1.57218331]
[1757338516142,1.5221697,886.0,883.14,1.57218331]
[1757338516346,1.5221697,885.98,883.14,1.57218331]
[1757338517144,1.5221697,885.99,883.14,1.57218331]
[1757338518048,0.19711465,885.28,883.14,1.57218331]
[1757338521350,0.19711465,885.28,883.13,0.75681049]
[1757338521650,0.19711465,885.28,883.12,0.75681049]
[1757338522348,0.19711465,885.28,883.13,1.47332906]
[1757338522552,0.19711465,885.28,883.13,0.75681049]
[1757338522851,0.19711465,885.28,883.12,0.75681049]
[1757338523249,0.19711465,885.28,883.12,2.27536673]
[1757338524548,1.5221697,885.23,883.05,2.27536673]
[1757338525260,1.5221697,885.22,883.05,2.27536673]
[1757338525455,1.5221697,885.21,883.05,2.27536673]
[1757338525956,1.5221697,885.22,883.05,2.27536673]
[1757338526354,0.19711465,885.28,883.05,2.27536673]
[1757338526355,1.5221697,885.23,883.05,2.27536673]
[1757338528056,1.5221697,885.22,883.05,2.27536673]
[1757338528253,1.5221697,885.23,883.05,2.27536673]
[1757338531556,1.5221697,885.21,883.05,2.27536673]
[1757338532160,1.5221697,885.22,883.05,2.27536673]
[1757338532361,1.5221697,885.21,883.04,2.07817613]
[1757338532660,1.5221697,885.14,882.98,0.75681049]
[1757338532860,1.5221697,885.14,882.26,3.5317822]
[1757338532861,1.5221697,885.08,882.91,0.75681049]
[1757338533057,1.5221697,885.07,882.9,0.75681049]
[1757338533357,1.5221697,885.08,882.91,1.47171652]
[1757338533561,1.5221697,885.08,882.91,0.75681049]
[1757338533859,1.5221697,885.07,882.91,0.75681049]
[1757338534160,1.5221697,885.05,882.9,0.75681049]
[1757338534460,1.5221697,885.06,882.9,0.75681049]
[1757338535161,1.5221697,885.07,882.9,0.75681049]
[1757338535359,0.19721351,884.53,882.9,0.75681049]
[1757338535658,0.19721351,884.53,882.91,1.47026394]
[1757338535862,0.19721351,884.53,882.91,0.75681049]
[1757338543662,0.19721351,884.53,882.88,0.75681049]
[1757338544367,0.19721351,884.53,882.83,0.75681049]
[1757338545065,0.19721351,884.53,882.83,1.77001899]
[1757338546871,0.19721351,884.53,882.83,1.0132085]
[1757338547068,0.19721351,884.53,882.83,1.77305033]
[1757338552478,0.19721351,884.53,882.83,3.29274513]
[1757338561387,0.19721351,884.53,882.84,0.71351548]
[1757338561586,0.19721351,884.53,882.89,3.29274513]
[1757338561788,0.19721351,884.53,882.88,3.29274513]
[1757338572695,0.19721351,884.53,882.87,3.29274513]
[1757338573198,0.19721351,884.53,882.86,3.29274513]
[1757338573495,0.19721351,884.53,882.83,3.29274513]
[1757338573899,0.19721351,884.53,882.81,3.29274513]
[1757338574498,1.01735896,884.83,882.8,3.0954897]
[1757338574699,1.01735896,884.66,882.76,2.27953663]
[1757338574900,1.01735896,884.53,882.64,2.27953663]
[1757338575199,2.5369495,885.57,882.64,2.27953663]
[1757338575200,1.01735896,884.52,882.64,2.27953663]
[1757338575598,1.01735896,884.53,882.64,2.27953663]
[1757338577002,1.01735896,884.53,882.63,2.27953663]
[1757338577198,1.01735896,884.53,882.64,2.27953663]
[1757338577502,0.19729177,884.06,882.6,2.27953663]
[1757338577998,0.19729177,884.06,882.53,2.27953663]
[1757338578601,0.19729177,884.06,882.54,2.27953663]
[1757338579405,0.19729177,884.06,882.43,2.27953663]
[1757338580302,1.01735896,884.25,882.18,0.75984183]
[1757338580705,1.01735896,884.23,882.18,0.75984183]
[1757338580905,1.01735896,884.32,882.18,0.75984183]
[1757338581201,1.01735896,884.32,881.58,2.5227016]
[1757338581406,1.01735896,884.39,882.18,0.76104786]
[1757338581606,1.01735896,884.4,882.19,0.76104786]
[1757338581807,1.01735896,884.39,882.19,0.76104786]
[1757338582209,1.01735896,884.44,882.19,0.76104786]
[1757338582806,1.01735896,884.47,882.19,0.76104786]
[1757338583408,0.19735443,883.91,882.19,0.76104786]
[1757338585410,0.19735443,883.91,882.38,0.76104786]
[1757338585710,0.19735443,883.91,882.41,0.76104786]